fUST/lending_fUST_20240705
["ID","MTS","AMOUNT","RATE_DAILY","PERIOD"]
[331250862,1720159836036,-175.1548047,0.000274,2]
[331250863,1720159836046,-12193.72029826,0.00028,30]
[331250864,1720159836055,-1663.00804892,0.00029532,20]
[331250865,1720159836065,-170.02685345,0.00029773,3]
[331250866,1720159836074,-4591.6811785,0.00029779,2]
[331250867,1720159836084,-154.74467129,0.0003,4]
[331250868,1720159836096,-471.27760912,0.0003,4]
[331250869,1720159836109,-481.35225436,0.0003,30]
[331250870,1720159836119,-170.02685345,0.0003249,4]
[331250872,1720159836130,-25000.7011477,0.000325,60]
[331250875,1720159836145,-416.6428873,0.000325,60]
[331250935,1720159839781,-502.78228527,0.00016875,2]
[331250937,1720159839791,-18990.09225166,0.000325,60]
[331250939,1720159839801,-158.516724,0.00032685,2]
[331250941,1720159839812,-1000.0,0.00033,33]
[331250942,1720159839822,-642.515274,0.00033295,2]
[331250943,1720159839832,-170.02685345,0.00033822,4]
[331250944,1720159839843,-500.54319862,0.00034,5]
[331250945,1720159839853,-1239.57995352,0.000344,2]
[331250946,1720159839863,-1500.68966724,0.00034422,2]
[331250948,1720159839876,-642.76758109,0.0003456,4]
[331250950,1720159839886,-4216.21563341,0.00034592,2]
[331250951,1720159839896,-256.53141225,0.00034811,2]
[331250953,1720159839906,-256.53141225,0.00034811,2]
[331250955,1720159839916,-340.0537069,0.00034889,4]
[331250956,1720159839926,-25688.61944058,0.00034899,5]
[331250957,1720159839939,-39918.42511117,0.00034899,5]
[331250958,1720159839950,-4854.0035,0.00034899,5]
[331250959,1720159839964,-6094.8974,0.00034899,5]
[331250960,1720159839977,-12332.05454825,0.00034899,5]
[331250961,1720159839987,-664.59310376,0.00035,30]
[331250962,1720159839996,-2196.40771411,0.00035292,4]
[331250963,1720159840005,-306.030258,0.000356,18]
[331250964,1720159840015,-170.02685345,0.00035606,4]
[331250965,1720159840025,-11450.67,0.00035616,3]
[331250966,1720159840035,-9542.23,0.00035616,3]
[331250967,1720159840046,-7951.85,0.00035616,3]
[331250968,1720159840056,-6626.55,0.00035616,3]
[331250969,1720159840067,-531.43672027,0.00036,30]
[331250970,1720159840077,-159.369575,0.00036301,2]
[331250971,1720159840087,-156.25095608,0.00036483,7]
[331250972,1720159840098,-1181.31020319,0.00036732,4]
[331250973,1720159840108,-154.83299546,0.00037,4]
[331250974,1720159840118,-157.43961241,0.00037194,7]
[331250975,1720159840127,-1091.40807892,0.00037523,21]
[331250976,1720159840137,-170.02685345,0.0003799,4]
[331250977,1720159840147,-23892.12652259,0.00038,30]
[331250978,1720159840156,-158.46158397,0.00038634,7]
[331250979,1720159840166,-871.92,0.00039,120]
[331250980,1720159840176,-1902.06329434,0.00039,120]
[331250981,1720159840186,-155.04482031,0.00039177,4]
[331250982,1720159840196,-435.0,0.00039177,2]
[331250983,1720159840207,-154.71377951,0.000392,10]
[331250984,1720159840217,-360.48479037,0.00039393,4]
[331250985,1720159840227,-276.42306753,0.00039393,4]
[331250986,1720159840237,-642.515274,0.00039394,2]
[331250987,1720159840421,-3990.00210664,0.0003999,4]
[331250988,1720159840431,-200.69263147,0.00039994,4]
[331250989,1720159840441,-154.80649189,0.00039994,4]
[331250990,1720159840451,-154.76012181,0.00039999,2]
[331250991,1720159840461,-151.0,0.0004,120]
[331250992,1720159840470,-151.0,0.0004,120]
[331250993,1720159840480,-156.25095608,0.00040052,30]
[331250994,1720159840490,-157.43961241,0.00040165,30]
[331250995,1720159840500,-156.25095608,0.00040977,30]
[331250996,1720159840509,-8823.13575589,0.00041,30]
[331250997,1720159840520,-150.0,0.00041175,2]
[331250998,1720159840530,-170.02685345,0.00041294,5]
[331250999,1720159840540,-151.0,0.00041397,120]
[331251000,1720159840550,-1239.57995352,0.0004165,2]
[331251001,1720159840559,-877.0,0.00041654,2]
[331251002,1720159840569,-151.0,0.00042082,120]
[331251003,1720159840579,-157.43961241,0.00042273,30]
[331251004,1720159840589,-151.0,0.00042795,120]
[331251005,1720159840598,-1000.0,0.00043,43]
[331251006,1720159840608,-158.46158397,0.00043564,30]
[331251007,1720159840618,-151.0,0.00044164,120]
[331251008,1720159840628,-151.0,0.00044192,120]
[331251010,1720159840638,-158.516724,0.00044274,2]
[331251012,1720159840652,-877.0,0.00044654,2]
[331251014,1720159840663,-1000.0,0.00045,45]
[331251016,1720159840672,-200.0,0.00045,120]
[331251017,1720159840682,-5018.103,0.00045,55]
[331251018,1720159840691,-5000.0,0.00045,14]
[331251019,1720159840700,-642.515274,0.00045494,2]
[331251020,1720159840710,-151.0,0.00045589,120]
[331251021,1720159840720,-170.02685345,0.0004599,5]
[331251022,1720159840729,-50123.65061802,0.00046,60]
[331251023,1720159840739,-154.83742071,0.00046,4]
[331251024,1720159840749,-290.27376141,0.00046,4]
[331251025,1720159840759,-324.82950934,0.00046,3]
[331251026,1720159840768,-5000.0,0.00046,14]
[331251027,1720159840778,-157.43961241,0.00046022,30]
[331251028,1720159840792,-151.0,0.00046247,120]
[331251029,1720159840801,-170.02685345,0.0004649,5]
[331251030,1720159840811,-10000.0,0.000465,65]
[331251031,1720159840820,-159.637788,0.00046575,2]
[331251032,1720159840829,-158.46158397,0.00046679,30]
[331251033,1720159840839,-151.0,0.00046986,120]
[331251034,1720159840849,-1799.40583263,0.00047,7]
[331251035,1720159840858,-1000.0,0.00047,47]
[331251036,1720159840869,-5000.0,0.00047,20]
[331251037,1720159840883,-158.46158397,0.00047247,30]
[331251038,1720159840892,-158.46158397,0.0004755,30]
[331251039,1720159840901,-877.0,0.00047654,2]
[331251040,1720159840911,-2000.0,0.00047945,120]
[331251041,1720159840922,-5000.0,0.00048,30]
[331251042,1720159840932,-151.0,0.00048329,120]
[331251043,1720159840942,-151.0,0.00048384,120]
[331251044,1720159840951,-170.02685345,0.00048388,6]
[331251045,1720159840962,-14750.92089144,0.00048398,8]
[331251046,1720159840972,-2000.0,0.00048493,120]
[331251047,1720159840982,-10000.0,0.000485,75]
[331251048,1720159840992,-170.02685345,0.0004879,6]
[331251049,1720159841002,-25504.09220475,0.000488,90]
[331251050,1720159841012,-1239.57995352,0.000489,2]
[331251051,1720159841022,-1000.0,0.00049,49]
[331251052,1720159841032,-4684.0,0.00049,30]
[331251053,1720159841041,-2000.0,0.00049041,120]
[331251054,1720159841051,-558.0,0.000492,30]
[331251055,1720159841060,-153.0,0.00049288,120]
[331251056,1720159841070,-153.0,0.00049288,120]
[331251057,1720159841079,-153.0,0.00049288,120]
[331251058,1720159841089,-153.0,0.00049288,120]
[331251059,1720159841099,-153.0,0.00049288,120]
[331251060,1720159841108,-153.0,0.00049288,120]
[331251061,1720159841118,-153.0,0.00049288,120]
[331251062,1720159841127,-153.0,0.00049288,120]
[331251063,1720159841138,-153.0,0.00049288,120]
[331251064,1720159841147,-153.0,0.00049288,120]
[331251065,1720159841157,-153.0,0.00049288,120]
[331251066,1720159841166,-153.0,0.00049288,120]
[331251067,1720159841175,-153.0,0.00049288,120]
[331251068,1720159841185,-153.0,0.00049288,120]
[331251069,1720159841194,-170.02685345,0.00049295,6]
[331251070,1720159841204,-11904.30854662,0.00049315,31]
[331251071,1720159841213,-533.92,0.00049315,120]
[331251072,1720159841223,-500.0,0.00049315,120]
[331251073,1720159841232,-500.0,0.00049315,120]
[331251074,1720159841242,-500.0,0.00049315,120]
[331251075,1720159841251,-502.1966832,0.00049315,120]
[331251076,1720159841261,-500.0,0.00049315,120]
[331251077,1720159841271,-500.0,0.00049315,120]
[331251078,1720159841281,-500.0,0.00049315,120]
[331251079,1720159841293,-161.09681693,0.00049315,120]
[331251080,1720159841302,-500.0,0.00049315,120]
[331251081,1720159841312,-209.88288665,0.00049315,120]
[331251082,1720159841322,-500.0,0.00049315,120]
[331251083,1720159841332,-500.0,0.00049315,120]
[331251084,1720159841343,-500.0,0.00049315,120]
[331251085,1720159841352,-500.0,0.00049315,120]
[331251086,1720159841362,-500.0,0.00049315,120]
[331251087,1720159841371,-500.0,0.00049315,120]
[331251088,1720159841382,-500.0,0.00049315,120]
[331251089,1720159841391,-500.0,0.00049315,120]
[331251090,1720159841401,-500.0,0.00049315,120]
[331251091,1720159841410,-500.0,0.00049315,120]
[331251092,1720159841421,-501.81448415,0.00049315,120]
[331251094,1720159841431,-500.0,0.00049315,120]
[331251095,1720159841442,-500.0,0.00049315,120]
[331251096,1720159841452,-382.64619384,0.00049315,120]
[331251097,1720159841461,-500.0,0.00049315,120]
[331251098,1720159841472,-500.0,0.00049315,120]
[331251099,1720159841481,-500.0,0.00049315,120]
[331251100,1720159841490,-500.0,0.00049315,120]
[331251101,1720159841500,-500.0,0.00049315,120]
[331251102,1720159841509,-500.84218395,0.00049315,120]
[331251103,1720159841519,-500.0,0.00049315,120]
[331251104,1720159841528,-500.0,0.00049315,120]
[331251105,1720159841537,-356.04202684,0.00049315,120]
[331251106,1720159841547,-524.47846599,0.00049315,120]
[331251107,1720159841556,-500.22793421,0.00049315,120]
[331251108,1720159841566,-500.0,0.00049315,120]
[331251109,1720159841575,-500.0,0.00049315,120]
[331251110,1720159841586,-414.27984714,0.00049315,120]
[331251111,1720159841597,-500.0,0.00049315,120]
[331251112,1720159841606,-500.0,0.00049315,120]
[331251113,1720159841616,-500.0,0.00049315,120]
[331251114,1720159841625,-500.0,0.00049315,120]
[331251115,1720159841634,-500.0,0.00049315,120]
[331251116,1720159841643,-500.56557163,0.00049315,120]
[331251117,1720159841653,-615.87011713,0.00049315,120]
[331251118,1720159841663,-500.0,0.00049315,120]
[331251119,1720159841672,-500.0,0.00049315,120]
[331251120,1720159841680,-500.0,0.00049315,120]
[331251121,1720159841689,-618.39399874,0.00049315,120]
[331251122,1720159841698,-500.0,0.00049315,120]
[331251123,1720159841707,-500.0,0.00049315,120]
[331251124,1720159841717,-500.0,0.00049315,120]
[331251125,1720159841726,-706.79,0.00049315,120]
[331251126,1720159841735,-500.0,0.00049315,120]
[331251127,1720159841744,-500.0,0.00049315,120]
[331251128,1720159841754,-527.88,0.00049315,120]
[331251129,1720159841764,-500.0,0.00049315,120]
[331251130,1720159841773,-500.0,0.00049315,120]
[331251131,1720159841782,-500.0,0.00049315,120]
[331251132,1720159841791,-500.0,0.00049315,120]
[331251133,1720159841799,-500.0,0.00049315,120]
[331251134,1720159841809,-500.0,0.00049315,120]
[331251135,1720159841819,-500.0,0.00049315,120]
[331251136,1720159841827,-500.0,0.00049315,120]
[331251137,1720159841837,-500.0,0.00049315,120]
[331251138,1720159841848,-500.0,0.00049315,120]
[331251139,1720159841857,-500.0,0.00049315,120]
[331251140,1720159841867,-500.0,0.00049315,120]
[331251141,1720159841880,-500.0,0.00049315,120]
[331251142,1720159841890,-500.0,0.00049315,120]
[331251143,1720159841899,-500.0,0.00049315,120]
[331251144,1720159841908,-500.0,0.00049315,120]
[331251145,1720159841919,-605.06414014,0.00049315,120]
[331251146,1720159841928,-204.05004312,0.00049315,30]
[331251147,1720159841938,-338.00050963,0.00049315,120]
[331251148,1720159841947,-500.0,0.00049315,120]
[331251149,1720159841957,-500.0,0.00049315,120]
[331251150,1720159841967,-500.0,0.00049315,120]
[331251151,1720159841976,-500.0,0.00049315,120]
[331251152,1720159841985,-500.0,0.00049315,120]
[331251153,1720159841994,-500.0,0.00049315,120]
[331251154,1720159842004,-500.0,0.00049315,120]
[331251155,1720159842013,-500.0,0.00049315,120]
[331251156,1720159842022,-500.0,0.00049315,120]
[331251157,1720159842032,-500.0,0.00049315,30]
[331251158,1720159842041,-500.55713884,0.00049315,120]
[331251159,1720159842050,-500.0,0.00049315,120]
[331251160,1720159842060,-500.0,0.00049315,120]
[331251161,1720159842069,-527.62980174,0.00049315,120]
[331251162,1720159842078,-500.0,0.00049315,120]
[331251163,1720159842087,-500.0,0.00049315,120]
[331251164,1720159842097,-500.0,0.00049315,120]
[331251165,1720159842106,-500.0,0.00049315,120]
[331251166,1720159842116,-500.0,0.00049315,120]
[331251167,1720159842126,-500.0,0.00049315,120]
[331251168,1720159842135,-500.0,0.00049315,120]
[331251169,1720159842145,-151.0,0.00049315,14]
[331251170,1720159842155,-500.0,0.00049315,120]
[331251171,1720159842165,-500.0,0.00049315,120]
[331251172,1720159842174,-1183.84,0.00049315,120]
[331251173,1720159842183,-500.0,0.00049315,120]
[331251174,1720159842192,-508.0845674,0.00049315,120]
[331251175,1720159842202,-500.0,0.00049315,120]
[331251176,1720159842212,-1004.41735524,0.00049315,120]
[331251177,1720159842222,-151.0,0.00049315,14]
[331251178,1720159842232,-500.0,0.00049315,120]
[331251179,1720159842242,-500.0,0.00049315,120]
[331251180,1720159842252,-504.09428953,0.00049315,120]
[331251181,1720159842261,-500.0,0.00049315,120]
[331251182,1720159842271,-500.0,0.00049315,120]
[331251183,1720159842281,-500.0,0.00049315,120]
[331251184,1720159842290,-557.13,0.00049315,120]
[331251185,1720159842300,-500.0,0.00049315,120]
[331251186,1720159842309,-500.0,0.00049315,120]
[331251187,1720159842320,-500.0,0.00049315,120]
[331251188,1720159842330,-929.93,0.00049315,120]
[331251189,1720159842340,-500.0,0.00049315,120]
[331251190,1720159842352,-500.0,0.00049315,120]
[331251191,1720159842362,-500.0,0.00049315,20]
[331251192,1720159842373,-250.0,0.00049315,120]
[331251193,1720159842383,-500.0,0.00049315,120]
[331251194,1720159842393,-500.0,0.00049315,120]
[331251195,1720159842402,-500.0,0.00049315,120]
[331251196,1720159842412,-500.0,0.00049315,120]
[331251197,1720159842421,-500.0,0.00049315,120]
[331251198,1720159842430,-500.0,0.00049315,14]
[331251199,1720159842439,-500.0,0.00049315,120]
[331251200,1720159842449,-569.10929724,0.00049315,120]
[331251201,1720159842457,-500.0,0.00049315,120]
[331251202,1720159842466,-1576.3,0.00049315,120]
[331251203,1720159842476,-500.0,0.00049315,120]
[331251204,1720159842485,-509.45370397,0.00049315,120]
[331251205,1720159842494,-500.0,0.00049315,120]
[331251206,1720159842503,-500.0,0.00049315,120]
[331251207,1720159842512,-366.13775044,0.00049315,120]
[331251208,1720159842521,-151.0,0.00049315,14]
[331251209,1720159842530,-442.7511851,0.00049315,120]
[331251210,1720159842539,-151.0,0.00049315,14]
[331251211,1720159842548,-500.0,0.00049315,120]
[331251212,1720159842558,-500.0,0.00049315,120]
[331251213,1720159842568,-500.0,0.00049315,120]
[331251214,1720159842577,-518.24290427,0.00049315,120]
[331251215,1720159842586,-500.0,0.00049315,120]
[331251216,1720159842596,-500.0,0.00049315,120]
[331251217,1720159842605,-500.0,0.00049315,120]
[331251218,1720159842615,-310.0,0.00049315,30]
[331251219,1720159842624,-500.0,0.00049315,120]
[331251220,1720159842632,-310.0,0.00049315,30]
[331251221,1720159842642,-310.0,0.00049315,30]
[331251222,1720159842651,-310.0,0.00049315,30]
[331251223,1720159842660,-500.0,0.00049315,120]
[331251224,1720159842669,-446.822796,0.00049315,30]
[331251225,1720159842678,-500.0,0.00049315,120]
[331251226,1720159842688,-500.0,0.00049315,120]
[331251227,1720159842698,-500.0,0.00049315,120]
[331251228,1720159842707,-500.0,0.00049315,120]
[331251229,1720159842716,-500.0,0.00049315,120]
[331251230,1720159842725,-500.0,0.00049315,120]
[331251231,1720159842735,-500.0,0.00049315,120]
[331251232,1720159842744,-500.0,0.00049315,120]
[331251233,1720159842753,-500.0,0.00049315,120]
[331251234,1720159842763,-500.0,0.00049315,120]
[331251235,1720159842772,-500.0,0.00049315,120]
[331251236,1720159842781,-500.0,0.00049315,120]
[331251237,1720159842790,-500.0,0.00049315,120]
[331251238,1720159842800,-500.0,0.00049315,20]
[331251239,1720159842809,-500.0,0.00049315,120]
[331251240,1720159842818,-198.302613,0.00049315,14]
[331251241,1720159842827,-501.64977003,0.00049315,120]
[331251242,1720159842837,-273.2907417,0.00049315,120]
[331251243,1720159842848,-198.302613,0.00049315,14]
[331251244,1720159842858,-500.0,0.00049315,120]
[331251245,1720159842868,-500.0,0.00049315,120]
[331251246,1720159842882,-500.0,0.00049315,120]
[331251247,1720159842892,-500.0,0.00049315,120]
[331251248,1720159842901,-500.0,0.00049315,120]
[331251249,1720159842911,-500.0,0.00049315,120]
[331251250,1720159842923,-151.0,0.00049315,14]
[331251251,1720159842932,-500.0,0.00049315,120]
[331251252,1720159842942,-151.0,0.00049315,14]
[331251253,1720159842951,-500.0,0.00049315,120]
[331251254,1720159842964,-500.0,0.00049315,120]
[331251255,1720159842975,-500.0,0.00049315,120]
[331251256,1720159842983,-500.0,0.00049315,120]
[331251257,1720159842992,-500.0,0.00049315,120]
[331251258,1720159843001,-500.0,0.00049315,120]
[331251259,1720159843011,-500.0,0.00049315,120]
[331251260,1720159843019,-500.0,0.00049315,120]
[331251261,1720159843029,-501.77292278,0.00049315,120]
[331251262,1720159843039,-151.0,0.00049315,14]
[331251263,1720159843048,-500.0,0.00049315,120]
[331251264,1720159843057,-500.0,0.00049315,120]
[331251265,1720159843068,-500.0,0.00049315,120]
[331251266,1720159843076,-290.33322296,0.00049315,120]
[331251267,1720159843087,-500.0,0.00049315,120]
[331251268,1720159843096,-500.0,0.00049315,120]
[331251269,1720159843106,-934.13,0.00049315,120]
[331251270,1720159843115,-500.0,0.00049315,120]
[331251271,1720159843124,-500.0,0.00049315,120]
[331251272,1720159843133,-500.0,0.00049315,120]
[331251273,1720159843142,-151.0,0.00049315,14]
[331251274,1720159843151,-500.0,0.00049315,120]
[331251275,1720159843160,-500.82712496,0.00049315,120]
[331251276,1720159843169,-877.53,0.00049315,120]
[331251277,1720159843178,-500.0,0.00049315,120]
[331251278,1720159843187,-588.82542121,0.00049315,120]
[331251279,1720159843196,-500.0,0.00049315,120]
[331251280,1720159843205,-500.0,0.00049315,120]
[331251281,1720159843216,-151.661474,0.00049315,14]
[331251282,1720159843225,-500.0,0.00049315,120]
[331251283,1720159843235,-500.0,0.00049315,120]
[331251284,1720159843244,-500.0,0.00049315,120]
[331251285,1720159843254,-1103.83,0.00049315,120]
[331251286,1720159843262,-515.8906925,0.00049315,120]
[331251287,1720159843272,-611.75478571,0.00049315,120]
[331251291,1720159843281,-247.052392,0.00049315,14]
[331251295,1720159843290,-500.0,0.00049315,120]
[331251298,1720159843300,-513.53642244,0.00049315,120]
[331251300,1720159843310,-500.0,0.00049315,120]
[331251303,1720159843320,-500.0,0.00049315,120]
[331251307,1720159843331,-1051.27,0.00049315,120]
[331251309,1720159843341,-151.0,0.00049315,14]
[331251311,1720159843352,-500.0,0.00049315,120]
[331251313,1720159843361,-501.28853615,0.00049315,120]
[331251315,1720159843371,-500.0,0.00049315,120]
[331251317,1720159843380,-500.0,0.00049315,120]
[331251319,1720159843389,-500.0,0.00049315,120]
[331251321,1720159843398,-500.0,0.00049315,120]
[331251322,1720159843408,-500.0,0.00049315,120]
[331251324,1720159843418,-470.99098769,0.00049315,120]
[331251326,1720159843427,-500.0,0.00049315,120]
[331251328,1720159843437,-500.0,0.00049315,120]
[331251329,1720159843448,-500.0,0.00049315,30]
[331251331,1720159843457,-500.0,0.00049315,120]
[331251333,1720159843467,-500.0,0.00049315,120]
[331251334,1720159843476,-219.91,0.00049315,7]
[331251335,1720159843487,-500.0,0.00049315,120]
[331251336,1720159843496,-500.0,0.00049315,120]
[331251337,1720159843506,-500.0,0.00049315,120]
[331251338,1720159843515,-978.04,0.00049315,30]
[331251339,1720159843524,-500.0,0.00049315,120]
[331251340,1720159843533,-500.0,0.00049315,120]
[331251341,1720159843543,-500.0,0.00049315,120]
[331251342,1720159843552,-500.0,0.00049315,120]
[331251343,1720159843562,-500.0,0.00049315,120]
[331251344,1720159843571,-151.0,0.00049315,14]
[331251345,1720159843581,-501.00761264,0.00049315,120]
[331251346,1720159843590,-506.54675453,0.00049315,120]
[331251347,1720159843600,-500.0,0.00049315,120]
[331251348,1720159843610,-151.0,0.00049315,14]
[331251349,1720159843620,-500.0,0.00049315,120]
[331251350,1720159843629,-500.0,0.00049315,120]
[331251351,1720159843639,-500.0,0.00049315,120]
[331251352,1720159843648,-500.0,0.00049315,120]
[331251353,1720159843658,-500.0,0.00049315,120]
[331251354,1720159843668,-500.0,0.00049315,120]
[331251355,1720159843677,-500.0,0.00049315,120]
[331251356,1720159843687,-500.0,0.00049315,120]
[331251357,1720159843696,-500.0,0.00049315,120]
[331251358,1720159843706,-500.0,0.00049315,120]
[331251359,1720159843716,-500.0,0.00049315,120]
[331251360,1720159843725,-500.0,0.00049315,120]
[331251361,1720159843734,-500.0,0.00049315,120]
[331251362,1720159843744,-627.79492066,0.00049315,120]
[331251363,1720159843754,-13556.68,0.00049315,120]
[331251364,1720159843763,-500.0,0.00049315,120]
[331251365,1720159843773,-500.0,0.00049315,120]
[331251366,1720159843782,-500.0,0.00049315,120]
[331251367,1720159843792,-634.7159673,0.00049315,120]
[331251368,1720159843801,-500.0,0.00049315,120]
[331251369,1720159843810,-500.0,0.00049315,120]
[331251370,1720159843820,-500.0,0.00049315,120]
[331251371,1720159843831,-500.0,0.00049315,30]
[331251372,1720159843841,-500.0,0.00049315,120]
[331251373,1720159843851,-151.0,0.00049315,14]
[331251374,1720159843861,-500.0,0.00049315,120]
[331251375,1720159843870,-500.0,0.00049315,120]
[331251376,1720159843884,-500.0,0.00049315,120]
[331251377,1720159843894,-500.0,0.00049315,120]
[331251378,1720159843904,-500.0,0.00049315,120]
[331251379,1720159843914,-500.0,0.00049315,120]
[331251380,1720159843925,-501.10129387,0.00049315,120]
[331251381,1720159843935,-500.0,0.00049315,120]
[331251382,1720159843945,-12140.5,0.00049315,120]
[331251383,1720159843958,-500.0,0.00049315,120]
[331251384,1720159843968,-500.0,0.00049315,120]
[331251385,1720159843978,-861.77,0.00049315,120]
[331251386,1720159843987,-500.0,0.00049315,120]
[331251387,1720159843996,-500.0,0.00049315,120]
[331251388,1720159844006,-500.0,0.00049315,120]
[331251389,1720159844015,-500.0,0.00049315,120]
[331251390,1720159844153,-500.0,0.00049315,120]
[331251391,1720159844163,-221.9709,0.00049315,14]
[331251392,1720159844173,-221.9709,0.00049315,14]
[331251393,1720159844183,-500.0,0.00049315,120]
[331251394,1720159844193,-500.0,0.00049315,120]
[331251395,1720159844202,-221.9709,0.00049315,14]
[331251396,1720159844212,-221.9709,0.00049315,14]
[331251397,1720159844221,-500.0,0.00049315,120]
[331251398,1720159844231,-500.0,0.00049315,120]
[331251399,1720159844241,-151.0,0.00049315,14]
[331251400,1720159844251,-151.0,0.00049315,14]
[331251401,1720159844260,-500.0,0.00049315,120]
[331251402,1720159844270,-500.0,0.00049315,120]
[331251403,1720159844280,-524.16364632,0.00049315,120]
[331251404,1720159844290,-537.96,0.00049315,120]
[331251405,1720159844300,-151.0,0.00049315,14]
[331251406,1720159844310,-151.0,0.00049315,14]
[331251407,1720159844320,-267.24611504,0.00049315,120]
[331251408,1720159844330,-500.0,0.00049315,120]
[331251409,1720159844341,-500.0,0.00049315,120]
[331251410,1720159844353,-500.0,0.00049315,120]
[331251411,1720159844363,-321.24132141,0.00049315,120]
[331251412,1720159844372,-500.0,0.00049315,120]
[331251413,1720159844382,-151.0,0.00049315,14]
[331251414,1720159844392,-151.0,0.00049315,14]
[331251415,1720159844401,-500.0,0.00049315,120]
[331251416,1720159844411,-500.0,0.00049315,120]
[331251417,1720159844420,-500.0,0.00049315,120]
[331251418,1720159844430,-500.0,0.00049315,120]
[331251419,1720159844440,-500.0,0.00049315,120]
[331251420,1720159844449,-500.0,0.00049315,120]
[331251421,1720159844459,-500.0,0.00049315,120]
[331251422,1720159844468,-500.0,0.00049315,120]
[331251423,1720159844478,-500.0,0.00049315,120]
[331251424,1720159844487,-500.0,0.00049315,120]
[331251425,1720159844497,-500.0,0.00049315,120]
[331251426,1720159844506,-500.0,0.00049315,120]
[331251427,1720159844515,-500.0,0.00049315,120]
[331251428,1720159844524,-500.0,0.00049315,120]
[331251429,1720159844534,-500.0,0.00049315,120]
[331251430,1720159844544,-500.0,0.00049315,120]
[331251431,1720159844553,-500.0,0.00049315,120]
[331251432,1720159844562,-500.0,0.00049315,120]
[331251433,1720159844571,-500.0,0.00049315,120]
[331251434,1720159844582,-502.4769396,0.00049315,120]
[331251435,1720159844591,-546.32926241,0.00049315,120]
[331251436,1720159844602,-500.0,0.00049315,120]
[331251437,1720159844612,-500.0,0.00049315,120]
[331251438,1720159844622,-500.0,0.00049315,120]
[331251439,1720159844631,-500.0,0.00049315,120]
[331251440,1720159844641,-500.0,0.00049315,120]
[331251441,1720159844651,-500.0,0.00049315,120]
[331251442,1720159844662,-500.0,0.00049315,120]
[331251443,1720159844672,-500.0,0.00049315,120]
[331251444,1720159844681,-500.0,0.00049315,120]
[331251445,1720159844691,-537.46,0.00049315,120]
[331251446,1720159844700,-500.0,0.00049315,120]
[331251447,1720159844709,-500.0,0.00049315,120]
[331251448,1720159844719,-500.0,0.00049315,120]
[331251449,1720159844728,-1764.94,0.00049315,21]
[331251450,1720159844738,-8962.91,0.00049315,120]
[331251451,1720159844748,-4450.98,0.00049315,120]
[331251452,1720159844757,-807.79,0.00049315,120]
[331251453,1720159844767,-500.0,0.00049315,120]
[331251454,1720159844776,-500.0,0.00049315,120]
[331251455,1720159844786,-500.0,0.00049315,120]
[331251456,1720159844796,-500.0,0.00049315,120]
[331251457,1720159844805,-500.0,0.00049315,120]
[331251458,1720159844815,-549.51210646,0.00049315,120]
[331251459,1720159844824,-500.0,0.00049315,120]
[331251461,1720159844833,-500.0,0.00049315,120]
[331251463,1720159844843,-500.0,0.00049315,60]